fUSD/lending_fUSD_20260621
["ID","MTS","AMOUNT","RATE_DAILY","PERIOD"]
[425907045,1782033082000,-1737.27,0.00029041,2]
[425907044,1782033082000,-1018.86,0.00029041,2]
[425907055,1782033082000,-500.0,0.00029041,2]
[425907046,1782033082000,-500.0,0.00029041,2]
[425907047,1782033082000,-376.42492237,0.00029041,2]
[425907049,1782033082000,-500.0,0.00029041,2]
[425907048,1782033082000,-500.0,0.00029041,2]
[425907050,1782033082000,-500.0,0.00029041,2]
[425907053,1782033082000,-779.95,0.00029041,2]
[425907052,1782033082000,-875.57,0.00029041,2]
[425907051,1782033082000,-500.0,0.00029041,2]
[425907054,1782033082000,-433.21,0.00029041,2]
[425907056,1782033082000,-921.6,0.00029041,2]
[425907009,1782033082000,-512.04460726,0.00029041,2]
[425907037,1782033082000,-664.29,0.00029041,2]
[425907033,1782033082000,-497.42276763,0.00029041,2]
[425907017,1782033082000,-500.0,0.00029041,2]
[425907032,1782033082000,-500.0,0.00029041,2]
[425907010,1782033082000,-562.16,0.00029041,2]
[425907016,1782033082000,-500.0,0.00029041,2]
[425907008,1782033082000,-533.88,0.00029041,2]
[425907013,1782033082000,-921.72,0.00029041,2]
[425907036,1782033082000,-784.62,0.00029041,2]
[425907018,1782033082000,-500.0,0.00029041,2]
[425907014,1782033082000,-500.0,0.00029041,2]
[425907011,1782033082000,-509.25,0.00029041,2]
[425907020,1782033082000,-500.0,0.00029041,2]
[425907030,1782033082000,-500.0,0.00029041,2]
[425907025,1782033082000,-500.0,0.00029041,2]
[425907015,1782033082000,-500.0,0.00029041,2]
[425907021,1782033082000,-500.0,0.00029041,2]
[425907022,1782033082000,-582.99,0.00029041,2]
[425907035,1782033082000,-500.0,0.00029041,2]
[425907026,1782033082000,-603.17,0.00029041,2]
[425907028,1782033082000,-247.57460669,0.00029041,2]
[425907031,1782033082000,-629.68,0.00029041,2]
[425907024,1782033082000,-1066.62,0.00029041,2]
[425907027,1782033082000,-500.0,0.00029041,2]
[425907019,1782033082000,-541.30411231,0.00029041,2]
[425907023,1782033082000,-500.0,0.00029041,2]
[425907029,1782033082000,-500.0,0.00029041,2]
[425907095,1782033083000,-500.0,0.00029041,2]
[425907097,1782033083000,-500.0,0.00029041,2]
[425907103,1782033083000,-500.0,0.00029041,2]
[425907102,1782033083000,-500.0,0.00029041,2]
[425907100,1782033083000,-500.0,0.00029041,2]
[425907108,1782033083000,-500.0,0.00029041,2]
[425907089,1782033083000,-500.0,0.00029041,2]
[425907107,1782033083000,-662.0,0.00029041,2]
[425907096,1782033083000,-500.0,0.00029041,2]
[425907090,1782033083000,-500.0,0.00029041,2]
[425907084,1782033083000,-500.0,0.00029041,2]
[425907087,1782033083000,-803.37,0.00029041,2]
[425907106,1782033083000,-676.98,0.00029041,2]
[425907098,1782033083000,-507.61,0.00029041,2]
[425907117,1782033083000,-1574.14,0.00029041,2]
[425907101,1782033083000,-500.0,0.00029041,2]
[425907105,1782033083000,-500.0,0.00029041,2]
[425907109,1782033083000,-222.39316866,0.00029041,2]
[425907116,1782033083000,-500.0,0.00029041,2]
[425907111,1782033083000,-500.0,0.00029041,2]
[425907114,1782033083000,-218.39,0.00029041,2]
[425907119,1782033083000,-782.46,0.00029041,2]
[425907112,1782033083000,-500.0,0.00029041,2]
[425907110,1782033083000,-556.35,0.00029041,2]
[425907086,1782033083000,-500.0,0.00029041,2]
[425907118,1782033083000,-500.0,0.00029041,2]
[425907113,1782033083000,-1114.23,0.00029041,2]
[425907120,1782033083000,-539.05,0.00029041,2]
[425907099,1782033083000,-512.8,0.00029041,2]
[425907088,1782033083000,-40687.380737,0.00029041,2]
[425907074,1782033083000,-500.0,0.00029041,2]
[425907083,1782033083000,-500.0,0.00029041,2]
[425907057,1782033083000,-661.95,0.00029041,2]
[425907058,1782033083000,-500.0,0.00029041,2]
[425907067,1782033083000,-530.73,0.00029041,2]
[425907061,1782033083000,-500.0,0.00029041,2]
[425907060,1782033083000,-500.0,0.00029041,2]
[425907063,1782033083000,-161.00287,0.00029041,2]
[425907065,1782033083000,-746.04,0.00029041,2]
[425907066,1782033083000,-500.0,0.00029041,2]
[425907068,1782033083000,-500.0,0.00029041,2]
[425907062,1782033083000,-713.9,0.00029041,2]
[425907059,1782033083000,-500.0,0.00029041,2]
[425907064,1782033083000,-500.0,0.00029041,2]
[425907070,1782033083000,-500.0,0.00029041,2]
[425907080,1782033083000,-500.0,0.00029041,2]
[425907091,1782033083000,-500.0,0.00029041,2]
[425907069,1782033083000,-667.5,0.00029041,2]
[425907072,1782033083000,-500.0,0.00029041,2]
[425907071,1782033083000,-1516.79,0.00029041,2]
[425907075,1782033083000,-859.42,0.00029041,2]
[425907077,1782033083000,-500.0,0.00029041,2]
[425907076,1782033083000,-500.0,0.00029041,2]
[425907115,1782033083000,-500.0,0.00029041,2]
[425907073,1782033083000,-500.0,0.00029041,2]
[425907079,1782033083000,-184.54769259,0.00029041,2]
[425907078,1782033083000,-500.0,0.00029041,2]
[425907082,1782033083000,-500.0,0.00029041,2]
[425907092,1782033083000,-500.0,0.00029041,2]
[425907094,1782033083000,-170.260492,0.00029041,2]
[425907093,1782033083000,-718.34,0.00029041,2]
[425907085,1782033083000,-1229.86,0.00029041,2]
[425907081,1782033083000,-500.0,0.00029041,2]
[425907123,1782033083000,-500.0,0.00029041,2]
[425907104,1782033083000,-500.0,0.00029041,2]
[425907134,1782033083000,-500.0,0.00029041,2]
[425907155,1782033083000,-500.0,0.00029041,2]
[425907159,1782033083000,-500.0,0.00029041,2]
[425907158,1782033083000,-1043.69,0.00029041,2]
[425907157,1782033083000,-704.57,0.00029041,2]
[425907163,1782033083000,-500.0,0.00029041,2]
[425907167,1782033083000,-384.46019677,0.00029041,2]
[425907174,1782033083000,-513.5,0.00029041,2]
[425907164,1782033083000,-500.0,0.00029041,2]
[425907175,1782033083000,-500.0,0.00029041,2]
[425907166,1782033083000,-500.0,0.00029041,2]
[425907165,1782033083000,-500.0,0.00029041,2]
[425907168,1782033083000,-500.0,0.00029041,2]
[425907171,1782033083000,-1051.17,0.00029041,2]
[425907173,1782033083000,-500.0,0.00029041,2]
[425907156,1782033083000,-762.22,0.00029041,2]
[425907170,1782033083000,-4516.02,0.00029041,2]
[425907169,1782033083000,-500.0,0.00029041,2]
[425907187,1782033083000,-1401.64,0.00029041,2]
[425907177,1782033083000,-500.0,0.00029041,2]
[425907176,1782033083000,-500.0,0.00029041,2]
[425907188,1782033083000,-512.14,0.00029041,2]
[425907182,1782033083000,-500.0,0.00029041,2]
[425907180,1782033083000,-500.0,0.00029041,2]
[425907181,1782033083000,-1066.54,0.00029041,2]
[425907178,1782033083000,-500.0,0.00029041,2]
[425907127,1782033083000,-500.0,0.00029041,2]
[425907186,1782033083000,-966.14,0.00029041,2]
[425907185,1782033083000,-605.3865617,0.00029041,2]
[425907179,1782033083000,-500.0,0.00029041,2]
[425907184,1782033083000,-743.54,0.00029041,2]
[425907172,1782033083000,-1096.97,0.00029041,2]
[425907154,1782033083000,-1419.48,0.00029041,2]
[425907183,1782033083000,-500.0,0.00029041,2]
[425907149,1782033083000,-500.0,0.00029041,2]
[425907153,1782033083000,-500.0,0.00029041,2]
[425907135,1782033083000,-500.0,0.00029041,2]
[425907124,1782033083000,-500.0,0.00029041,2]
[425907122,1782033083000,-500.0,0.00029041,2]
[425907126,1782033083000,-500.0,0.00029041,2]
[425907133,1782033083000,-500.0,0.00029041,2]
[425907125,1782033083000,-500.0,0.00029041,2]
[425907130,1782033083000,-500.0,0.00029041,2]
[425907129,1782033083000,-1113.05,0.00029041,2]
[425907131,1782033083000,-500.0,0.00029041,2]
[425907128,1782033083000,-519.31,0.00029041,2]
[425907132,1782033083000,-500.0,0.00029041,2]
[425907136,1782033083000,-590.01479161,0.00029041,2]
[425907139,1782033083000,-1053.37,0.00029041,2]
[425907137,1782033083000,-572.27,0.00029041,2]
[425907121,1782033083000,-500.0,0.00029041,2]
[425907140,1782033083000,-500.0,0.00029041,2]
[425907141,1782033083000,-500.0,0.00029041,2]
[425907151,1782033083000,-565.61,0.00029041,2]
[425907160,1782033083000,-714.11,0.00029041,2]
[425907161,1782033083000,-966.1,0.00029041,2]
[425907150,1782033083000,-500.0,0.00029041,2]
[425907145,1782033083000,-500.0,0.00029041,2]
[425907152,1782033083000,-500.0,0.00029041,2]
[425907147,1782033083000,-500.0,0.00029041,2]
[425907146,1782033083000,-500.0,0.00029041,2]
[425907148,1782033083000,-622.33,0.00029041,2]
[425907138,1782033083000,-500.0,0.00029041,2]
[425907162,1782033083000,-500.0,0.00029041,2]
[425907142,1782033083000,-587.76768633,0.00029041,2]
[425907144,1782033083000,-500.0,0.00029041,2]
[425907143,1782033083000,-500.0,0.00029041,2]
[425907266,1782033084000,-500.0,0.00029041,2]
[425907279,1782033084000,-531.84,0.00029041,2]
[425907280,1782033084000,-596.53894305,0.00029041,2]
[425907275,1782033084000,-853.34,0.00029041,2]
[425907274,1782033084000,-1000.0,0.00029041,2]
[425907273,1782033084000,-1121.32,0.00029041,2]
[425907272,1782033084000,-500.0,0.00029041,2]
[425907271,1782033084000,-500.0,0.00029041,2]
[425907270,1782033084000,-500.0,0.00029041,2]
[425907267,1782033084000,-3456.59,0.00029041,2]
[425907278,1782033084000,-1758.48,0.00029041,2]
[425907258,1782033084000,-500.0,0.00029041,2]
[425907269,1782033084000,-1050.19,0.00029041,2]
[425907263,1782033084000,-500.0,0.00029041,2]
[425907264,1782033084000,-500.0,0.00029041,2]
[425907265,1782033084000,-500.0,0.00029041,2]
[425907259,1782033084000,-500.0,0.00029041,2]
[425907277,1782033084000,-500.0,0.00029041,2]
[425907260,1782033084000,-503.69,0.00029041,2]
[425907256,1782033084000,-1073.5,0.00029041,2]
[425907257,1782033084000,-500.0,0.00029041,2]
[425907255,1782033084000,-772.6,0.00029041,2]
[425907254,1782033084000,-500.0,0.00029041,2]
[425907250,1782033084000,-500.0,0.00029041,2]
[425907268,1782033084000,-500.0,0.00029041,2]
[425907281,1782033084000,-500.0,0.00029041,2]
[425907289,1782033084000,-500.0,0.00029041,2]
[425907282,1782033084000,-3977.44,0.00029041,2]
[425907262,1782033084000,-500.0,0.00029041,2]
[425907307,1782033084000,-500.0,0.00029041,2]
[425907305,1782033084000,-500.0,0.00029041,2]
[425907308,1782033084000,-500.0,0.00029041,2]
[425907306,1782033084000,-651.67,0.00029041,2]
[425907302,1782033084000,-500.0,0.00029041,2]
[425907304,1782033084000,-500.0,0.00029041,2]
[425907303,1782033084000,-500.0,0.00029041,2]
[425907301,1782033084000,-500.0,0.00029041,2]
[425907298,1782033084000,-539.64,0.00029041,2]
[425907300,1782033084000,-500.0,0.00029041,2]
[425907299,1782033084000,-500.0,0.00029041,2]
[425907294,1782033084000,-500.0,0.00029041,2]
[425907295,1782033084000,-500.0,0.00029041,2]
[425907297,1782033084000,-500.0,0.00029041,2]
[425907291,1782033084000,-500.0,0.00029041,2]
[425907287,1782033084000,-500.0,0.00029041,2]
[425907293,1782033084000,-500.0,0.00029041,2]
[425907290,1782033084000,-500.0,0.00029041,2]
[425907296,1782033084000,-2819.93,0.00029041,2]
[425907288,1782033084000,-500.0,0.00029041,2]
[425907286,1782033084000,-500.0,0.00029041,2]
[425907285,1782033084000,-500.0,0.00029041,2]
[425907284,1782033084000,-650.62,0.00029041,2]
[425907283,1782033084000,-500.0,0.00029041,2]
[425907276,1782033084000,-566.65,0.00029041,2]
[425907292,1782033084000,-500.0,0.00029041,2]
[425907252,1782033084000,-500.0,0.00029041,2]
[425907251,1782033084000,-500.0,0.00029041,2]
[425907219,1782033084000,-831.38,0.00029041,2]
[425907217,1782033084000,-500.0,0.00029041,2]
[425907214,1782033084000,-554.99710971,0.00029041,2]
[425907215,1782033084000,-500.0,0.00029041,2]
[425907213,1782033084000,-500.0,0.00029041,2]
[425907208,1782033084000,-606.32,0.00029041,2]
[425907210,1782033084000,-1115.01,0.00029041,2]
[425907209,1782033084000,-500.0,0.00029041,2]
[425907211,1782033084000,-596.87,0.00029041,2]
[425907206,1782033084000,-500.0,0.00029041,2]
[425907207,1782033084000,-500.0,0.00029041,2]
[425907201,1782033084000,-500.0,0.00029041,2]
[425907212,1782033084000,-500.0,0.00029041,2]
[425907203,1782033084000,-4215.0,0.00029041,2]
[425907205,1782033084000,-500.0,0.00029041,2]
[425907202,1782033084000,-500.0,0.00029041,2]
[425907198,1782033084000,-920.55,0.00029041,2]
[425907189,1782033084000,-4073.97,0.00029041,2]
[425907190,1782033084000,-2735.23,0.00029041,2]
[425907196,1782033084000,-744.26,0.00029041,2]
[425907195,1782033084000,-500.0,0.00029041,2]
[425907199,1782033084000,-500.0,0.00029041,2]
[425907200,1782033084000,-500.0,0.00029041,2]
[425907191,1782033084000,-1496.3,0.00029041,2]
[425907192,1782033084000,-500.0,0.00029041,2]
[425907194,1782033084000,-500.0,0.00029041,2]
[425907193,1782033084000,-500.0,0.00029041,2]
[425907197,1782033084000,-500.0,0.00029041,2]
[425907253,1782033084000,-836.7,0.00029041,2]
[425907220,1782033084000,-500.0,0.00029041,2]
[425907218,1782033084000,-643.45481538,0.00029041,2]
[425907204,1782033084000,-2160.34,0.00029041,2]
[425907224,1782033084000,-1548.3,0.00029041,2]
[425907216,1782033084000,-500.0,0.00029041,2]
[425907244,1782033084000,-500.0,0.00029041,2]
[425907246,1782033084000,-1012.15,0.00029041,2]
[425907243,1782033084000,-595.47,0.00029041,2]
[425907241,1782033084000,-500.0,0.00029041,2]
[425907245,1782033084000,-1493.19,0.00029041,2]
[425907240,1782033084000,-586.71,0.00029041,2]
[425907248,1782033084000,-500.0,0.00029041,2]
[425907247,1782033084000,-964.45,0.00029041,2]
[425907242,1782033084000,-1068.12,0.00029041,2]
[425907239,1782033084000,-717.52,0.00029041,2]
[425907249,1782033084000,-500.0,0.00029041,2]
[425907238,1782033084000,-500.0,0.00029041,2]
[425907231,1782033084000,-1666.17,0.00029041,2]
[425907235,1782033084000,-500.0,0.00029041,2]
[425907261,1782033084000,-911.52,0.00029041,2]
[425907228,1782033084000,-500.0,0.00029041,2]
[425907234,1782033084000,-516.52,0.00029041,2]
[425907232,1782033084000,-500.0,0.00029041,2]
[425907229,1782033084000,-567.94,0.00029041,2]
[425907236,1782033084000,-969.71,0.00029041,2]
[425907230,1782033084000,-500.0,0.00029041,2]
[425907225,1782033084000,-1301.74,0.00029041,2]
[425907226,1782033084000,-500.0,0.00029041,2]
[425907233,1782033084000,-500.0,0.00029041,2]
[425907227,1782033084000,-662.83,0.00029041,2]
[425907237,1782033084000,-500.0,0.00029041,2]
[425907221,1782033084000,-500.0,0.00029041,2]
[425907222,1782033084000,-509.56,0.00029041,2]
[425907223,1782033084000,-537.11,0.00029041,2]
[425907361,1782033085000,-500.0,0.00029315,2]
[425907359,1782033085000,-793.21,0.00029315,2]
[425907339,1782033085000,-827.33,0.00029041,2]
[425907352,1782033085000,-534.17,0.00029315,2]
[425907353,1782033085000,-500.0,0.00029315,2]
[425907349,1782033085000,-501.82455083,0.00029315,2]
[425907343,1782033085000,-511.0,0.0002917,4]
[425907347,1782033085000,-501.24203536,0.00029291,2]
[425907342,1782033085000,-506.67,0.00029041,2]
[425907340,1782033085000,-1181.09,0.00029041,2]
[425907348,1782033085000,-10054.51283571,0.00029293,2]
[425907346,1782033085000,-501.24203536,0.00029181,2]
[425907360,1782033085000,-500.0,0.00029315,2]
[425907350,1782033085000,-500.0,0.00029315,2]
[425907355,1782033085000,-1203.65,0.00029315,2]
[425907367,1782033085000,-500.0,0.00029315,2]
[425907357,1782033085000,-634.94,0.00029315,2]
[425907351,1782033085000,-500.0,0.00029315,2]
[425907356,1782033085000,-500.0,0.00029315,2]
[425907358,1782033085000,-500.0,0.00029315,2]
[425907362,1782033085000,-500.0,0.00029315,2]
[425907369,1782033085000,-500.0,0.00029315,2]
[425907373,1782033085000,-762.48,0.00029315,2]
[425907366,1782033085000,-500.0,0.00029315,2]
[425907372,1782033085000,-500.0,0.00029315,2]
[425907365,1782033085000,-578.39,0.00029315,2]
[425907364,1782033085000,-780.63,0.00029315,2]
[425907371,1782033085000,-500.0,0.00029315,2]
[425907363,1782033085000,-500.0,0.00029315,2]
[425907354,1782033085000,-500.0,0.00029315,2]
[425907344,1782033085000,-152.0,0.00029174,3]
[425907309,1782033085000,-363.93230746,0.00029041,2]
[425907345,1782033085000,-501.24203536,0.00029178,2]
[425907368,1782033085000,-500.0,0.00029315,2]
[425907310,1782033085000,-629.92,0.00029041,2]
[425907323,1782033085000,-500.0,0.00029041,2]
[425907312,1782033085000,-213.05434598,0.00029041,2]
[425907311,1782033085000,-500.0,0.00029041,2]
[425907314,1782033085000,-500.0,0.00029041,2]
[425907320,1782033085000,-550.42,0.00029041,2]
[425907321,1782033085000,-500.0,0.00029041,2]
[425907322,1782033085000,-500.0,0.00029041,2]
[425907315,1782033085000,-498.37957405,0.00029041,2]
[425907313,1782033085000,-500.0,0.00029041,2]
[425907316,1782033085000,-500.0,0.00029041,2]
[425907318,1782033085000,-500.0,0.00029041,2]
[425907319,1782033085000,-904.85,0.00029041,2]
[425907341,1782033085000,-2292.48,0.00029041,2]
[425907317,1782033085000,-712.88,0.00029041,2]
[425907335,1782033085000,-500.0,0.00029041,2]
[425907327,1782033085000,-500.0,0.00029041,2]
[425907329,1782033085000,-2754.08,0.00029041,2]
[425907332,1782033085000,-791.72,0.00029041,2]
[425907328,1782033085000,-1479.66,0.00029041,2]
[425907324,1782033085000,-500.0,0.00029041,2]
[425907330,1782033085000,-613.09231104,0.00029041,2]
[425907333,1782033085000,-500.0,0.00029041,2]
[425907326,1782033085000,-500.0,0.00029041,2]
[425907334,1782033085000,-500.0,0.00029041,2]
[425907331,1782033085000,-500.0,0.00029041,2]
[425907338,1782033085000,-2177.43,0.00029041,2]
[425907336,1782033085000,-500.0,0.00029041,2]
[425907337,1782033085000,-500.0,0.00029041,2]
[425907325,1782033085000,-1002.37,0.00029041,2]
[425907370,1782033085000,-500.0,0.00029315,2]
[425907379,1782033085000,-500.0,0.00029315,2]
[425907374,1782033085000,-500.0,0.00029315,2]
[425907405,1782033085000,-500.0,0.00029315,2]
[425907414,1782033085000,-924.09,0.00029315,2]
[425907415,1782033085000,-500.0,0.00029315,2]
[425907410,1782033085000,-500.0,0.00029315,2]
[425907407,1782033085000,-500.0,0.00029315,2]
[425907412,1782033085000,-1703.68,0.00029315,2]
[425907416,1782033085000,-500.0,0.00029315,2]
[425907428,1782033085000,-500.0,0.00029315,2]
[425907419,1782033085000,-500.0,0.00029315,2]
[425907425,1782033085000,-500.0,0.00029315,2]
[425907424,1782033085000,-898.43,0.00029315,2]
[425907427,1782033085000,-500.0,0.00029315,2]
[425907426,1782033085000,-500.0,0.00029315,2]
[425907418,1782033085000,-500.0,0.00029315,2]
[425907402,1782033085000,-500.0,0.00029315,2]
[425907417,1782033085000,-1290.56,0.00029315,2]
[425907422,1782033085000,-152.82369895,0.00029315,2]
[425907423,1782033085000,-500.0,0.00029315,2]
[425907421,1782033085000,-500.0,0.00029315,2]
[425907430,1782033085000,-716.64,0.00029315,2]
[425907431,1782033085000,-769.83,0.00029315,2]
[425907375,1782033085000,-500.0,0.00029315,2]
[425907438,1782033085000,-500.0,0.00029315,2]
[425907435,1782033085000,-500.0,0.00029315,2]
[425907432,1782033085000,-500.0,0.00029315,2]
[425907434,1782033085000,-500.0,0.00029315,2]
[425907433,1782033085000,-547.24,0.00029315,2]
[425907429,1782033085000,-490.58608959,0.00029315,2]
[425907439,1782033085000,-500.0,0.00029315,2]
[425907436,1782033085000,-761.39,0.00029315,2]
[425907420,1782033085000,-1165.13,0.00029315,2]
[425907413,1782033085000,-500.0,0.00029315,2]
[425907437,1782033085000,-504.3,0.00029315,2]
[425907409,1782033085000,-500.0,0.00029315,2]
[425907406,1782033085000,-500.0,0.00029315,2]
[425907387,1782033085000,-819.65,0.00029315,2]
[425907377,1782033085000,-580.07,0.00029315,2]
[425907388,1782033085000,-645.65,0.00029315,2]
[425907376,1782033085000,-500.0,0.00029315,2]
[425907378,1782033085000,-500.0,0.00029315,2]
[425907382,1782033085000,-1264.4,0.00029315,2]
[425907385,1782033085000,-500.0,0.00029315,2]
[425907383,1782033085000,-635.9,0.00029315,2]
[425907384,1782033085000,-500.0,0.00029315,2]
[425907381,1782033085000,-500.0,0.00029315,2]
[425907386,1782033085000,-500.0,0.00029315,2]
[425907389,1782033085000,-500.0,0.00029315,2]
[425907390,1782033085000,-500.0,0.00029315,2]
[425907380,1782033085000,-500.0,0.00029315,2]
[425907394,1782033085000,-500.0,0.00029315,2]
[425907401,1782033085000,-975.96,0.00029315,2]
[425907404,1782033085000,-577.92,0.00029315,2]
[425907408,1782033085000,-1347.78,0.00029315,2]
[425907411,1782033085000,-1076.52,0.00029315,2]
[425907398,1782033085000,-500.0,0.00029315,2]
[425907395,1782033085000,-500.0,0.00029315,2]
[425907403,1782033085000,-840.08,0.00029315,2]
[425907399,1782033085000,-500.0,0.00029315,2]
[425907396,1782033085000,-500.0,0.00029315,2]
[425907392,1782033085000,-500.0,0.00029315,2]
[425907393,1782033085000,-500.0,0.00029315,2]
[425907400,1782033085000,-500.0,0.00029315,2]
[425907397,1782033085000,-528.51,0.00029315,2]
[425907391,1782033085000,-500.0,0.00029315,2]
[425907473,1782033086000,-500.0,0.00029315,2]
[425907471,1782033086000,-562.16,0.00029315,2]
[425907475,1782033086000,-500.0,0.00029315,2]
[425907474,1782033086000,-921.72,0.00029315,2]
[425907462,1782033086000,-500.0,0.00029315,2]
[425907460,1782033086000,-500.0,0.00029315,2]
[425907464,1782033086000,-658.23,0.00029315,2]
[425907463,1782033086000,-500.0,0.00029315,2]
[425907470,1782033086000,-533.88,0.00029315,2]
[425907481,1782033086000,-500.0,0.00029315,2]
[425907492,1782033086000,-500.0,0.00029315,2]
[425907477,1782033086000,-500.0,0.00029315,2]
[425907476,1782033086000,-500.0,0.00029315,2]
[425907478,1782033086000,-500.0,0.00029315,2]
[425907479,1782033086000,-500.0,0.00029315,2]
[425907480,1782033086000,-500.0,0.00029315,2]
[425907493,1782033086000,-500.0,0.00029315,2]
[425907484,1782033086000,-1066.62,0.00029315,2]
[425907491,1782033086000,-570.4435564,0.00029315,2]
[425907461,1782033086000,-595.36,0.00029315,2]
[425907482,1782033086000,-582.99,0.00029315,2]
[425907472,1782033086000,-509.25,0.00029315,2]
[425907465,1782033086000,-500.0,0.00029315,2]
[425907447,1782033086000,-554.72,0.00029315,2]
[425907466,1782033086000,-516.55,0.00029315,2]
[425907487,1782033086000,-500.0,0.00029315,2]
[425907441,1782033086000,-500.0,0.00029315,2]
[425907442,1782033086000,-500.0,0.00029315,2]
[425907440,1782033086000,-693.99,0.00029315,2]
[425907443,1782033086000,-500.0,0.00029315,2]
[425907445,1782033086000,-500.0,0.00029315,2]
[425907452,1782033086000,-500.0,0.00029315,2]
[425907446,1782033086000,-546.86,0.00029315,2]
[425907454,1782033086000,-530.82,0.00029315,2]
[425907451,1782033086000,-591.97,0.00029315,2]
[425907457,1782033086000,-500.0,0.00029315,2]
[425907444,1782033086000,-547.26,0.00029315,2]
[425907449,1782033086000,-500.0,0.00029315,2]
[425907448,1782033086000,-500.0,0.00029315,2]
[425907455,1782033086000,-500.0,0.00029315,2]
[425907453,1782033086000,-500.0,0.00029315,2]
[425907459,1782033086000,-500.0,0.00029315,2]
[425907458,1782033086000,-500.0,0.00029315,2]
[425907467,1782033086000,-500.0,0.00029315,2]
[425907456,1782033086000,-500.0,0.00029315,2]
[425907468,1782033086000,-612.83,0.00029315,2]
[425907469,1782033086000,-550.74,0.00029315,2]
[425907450,1782033086000,-592.61,0.00029315,2]
[425907486,1782033086000,-603.17,0.00029315,2]
[425907483,1782033086000,-500.0,0.00029315,2]
[425907528,1782033086000,-385.93139769,0.00029315,2]
[425907517,1782033086000,-500.0,0.00029315,2]
[425907515,1782033086000,-500.0,0.00029315,2]
[425907520,1782033086000,-746.04,0.00029315,2]
[425907530,1782033086000,-859.42,0.00029315,2]
[425907519,1782033086000,-500.0,0.00029315,2]
[425907521,1782033086000,-500.0,0.00029315,2]
[425907525,1782033086000,-500.0,0.00029315,2]
[425907524,1782033086000,-667.5,0.00029315,2]
[425907523,1782033086000,-500.0,0.00029315,2]
[425907526,1782033086000,-1516.79,0.00029315,2]
[425907507,1782033086000,-500.0,0.00029315,2]
[425907529,1782033086000,-500.0,0.00029315,2]
[425907533,1782033086000,-500.0,0.00029315,2]
[425907531,1782033086000,-500.0,0.00029315,2]
[425907536,1782033086000,-500.0,0.00029315,2]
[425907532,1782033086000,-500.0,0.00029315,2]
[425907535,1782033086000,-500.0,0.00029315,2]
[425907534,1782033086000,-500.0,0.00029315,2]
[425907538,1782033086000,-500.0,0.00029315,2]
[425907537,1782033086000,-500.0,0.00029315,2]
[425907539,1782033086000,-1229.86,0.00029315,2]
[425907488,1782033086000,-500.0,0.00029315,2]
[425907527,1782033086000,-500.0,0.00029315,2]
[425907518,1782033086000,-713.9,0.00029315,2]
[425907522,1782033086000,-530.73,0.00029315,2]